Cogmind - Beta 16 @@@ ROGUE MODE // 2025.11.05 @ 02:49:59 Player: Runagate Result: Destroyed by P-80 Master with Gamma Rifle Performance ------------- Evolutions (7) 3500 Regions Visited (14) 2800 Robots Destroyed (297) 1485 Value Destroyed (11811) 11811 Prototype IDs (12) 240 Alien Tech Used (2) 400 Bonus (2044) 2044 TOTAL SCORE: 22280 Bonus ------- High Alert Combat Kills 194 Follower Combat Kills 683 Entered Garrisons 200 Used RIF Installer 500 Scanned by Researcher 500 Friendly Fire -33 Cogmind --------- Core Integrity 0/1300 Matter 231/300 Energy 99/100 System Corruption 35% Temperature Cool (0) Movement Core (50) Location -3/Quarantine Parts ------- > --- POWER (2) -------- (None) > --- PROPULSION (4) --- (None) > --- UTILITY (11) ----- (None) > --- WEAPON (4) ------- (None) > --- INVENTORY (5) ---- Advanced Heat Sink High-capacity Matter Pod (200) Improved Component Analysis Suite Subatomic Replicator Linear Accelerator Peak State ------------ > --- POWER ------------ Antimatter Reactor Quantum Reactor > --- PROPULSION ------- Centrium Heavy Treads Centrium Heavy Treads > --- UTILITY ---------- Advanced Heat Sink Advanced Heat Sink Advanced Heat Sink Advanced Coolant Injector High-capacity Storage Unit Energy Well Improved Targeting Computer Improved Target Analyzer Improved Target Analyzer Improved Transmission Jammer Force Field > --- WEAPON ----------- Quantum Rifle Quantum Rifle Nova Cannon Heavy Flak Cannon > --- INVENTORY -------- Quantum Reactor Light Treads Improved Treads Advanced Treads Medium Treads Medium Treads Advanced Medium Treads Advanced Heat Sink Advanced Heat Sink High-capacity Matter Pod Improved Terrain Scanner Improved Medium Armor Plating Improved Component Analysis Suite Gamma Rifle Field Laser Coil Gun Hardcell Cannon Heavy Missile Launcher Phasing Sabre [Rating: 140] Favorites ----------- Power Quantum Reactor Engine Cooled Deuterium Engine Power Core Reinforced Fission Core Reactor Quantum Reactor Propulsion Advanced Treads Treads Advanced Treads Leg Aluminum Leg Utility Advanced Heat Sink Device Advanced Heat Sink Storage High-capacity Storage Unit Processor Improved Targeting Computer Protection Improved Medium Armor Plating Weapon Heavy Machine Gun Energy Gun Improved Medium Laser Energy Cannon Nova Cannon Ballistic Gun Heavy Machine Gun Ballistic Cannon Hardcell Cannon Launcher Heavy Missile Launcher Slashing Weapon Phasing Sabre Build | -11 -10 -9 -8 -7 -6 -5 -4 -4 -4 -4 -4 -4 -3 -3 ------- Run | Yrd Mat Mat Mat Fac Fac Fac Fac Ext Cet Arc Hub Gar Res Qua Slots Evolved 14 | . . 2 2 2 2 2 2 . . . . . 2 . Power 1 | . . . . . . . . . . . . . 1 . Propulsion 2 | . . . 2 . . . . . . . . . . . Utility 9 | . . 1 . 2 1 2 2 . . . . . 1 . Weapon 2 | . . 1 . . 1 . . . . . . . . . Parts Attached 208 | 11 8 33 33 18 10 10 4 18 12 4 3 4 12 28 Power 19 | 1 1 7 . 2 . 1 1 1 1 1 . . 1 2 Engine 11 | 1 1 7 . 1 . . . . . . . . . 1 Core 3 | . . . . 1 . 1 . 1 . . . . . . Reactor 5 | . . . . . . . 1 . 1 1 . . 1 1 Propulsion 53 | 4 . 8 17 5 2 2 . 5 4 . . . . 6 Treads 51 | 2 . 8 17 5 2 2 . 5 4 . . . . 6 Leg 2 | 2 . . . . . . . . . . . . . . Wheel . | . . . . . . . . . . . . . . . Hover . | . . . . . . . . . . . . . . . Flight . | . . . . . . . . . . . . . . . Utility 77 | 3 4 9 8 7 5 5 2 6 2 2 3 3 7 11 Device 47 | 2 1 6 4 3 4 2 1 4 . 2 2 2 6 8 Storage 6 | 1 2 . 1 1 . 1 . . . . . . . . Processor 6 | . . . . 1 1 2 . . . . 1 . . 1 Hackware . | . . . . . . . . . . . . . . . Protection 18 | . 1 3 3 2 . . 1 2 2 . . 1 1 2 Artifact . | . . . . . . . . . . . . . . . Weapon 59 | 3 3 9 8 4 3 2 1 6 5 1 . 1 4 9 Energy Gun 25 | 2 1 5 4 2 1 . . 1 2 . . . 3 4 Energy Cannon 3 | . . 1 . 1 . . . . . . . . 1 . Ballistic Gun 24 | 1 2 3 3 1 2 1 . 4 2 1 . . . 4 Ballistic Cannon 5 | . . . 1 . . 1 . . 1 . . 1 . 1 Launcher 1 | . . . . . . . 1 . . . . . . . Special Weapon . | . . . . . . . . . . . . . . . Impact Weapon . | . . . . . . . . . . . . . . . Slashing Weapon 1 | . . . . . . . . 1 . . . . . . Piercing Weapon . | . . . . . . . . . . . . . . . Special Melee Weapon . | . . . . . . . . . . . . . . . Unidentified Prototypes 11 | . . 3 2 1 . . . . 2 . . . . 3 Corrupted Parts 4 | . . . . . . . . . 3 1 . . . . System Corruption 17 | . . . . . . . . . 10 7 . . . . Parts Lost 56 | . . 1 3 1 1 . . 11 1 . 2 2 2 32 Power 6 | . . 1 . . . . . 1 . . . . . 4 Propulsion 10 | . . . 1 . . . . 2 . . . . . 7 Utility 22 | . . . 2 . 1 . . 6 . . 1 1 2 9 Weapon 18 | . . . . 1 . . . 2 1 . 1 1 . 12 Highest Loss Streak 21 | . . 1 3 1 1 . . 8 1 . 1 2 1 21 To Critical Strikes 2 | . . . . . . . . 1 . . . . . 1 Average Backups 16 | 1 10 14 14 14 17 19 19 19 19 20 19 19 19 15 Power 1 | . 1 1 1 1 1 1 1 2 3 2 2 2 1 . Propulsion 3 | . . 1 2 4 4 5 5 3 3 4 5 5 5 4 Utility 5 | . 2 5 5 3 5 6 5 6 7 7 7 8 7 6 Weapon 6 | . 5 6 6 6 6 7 6 6 6 6 5 4 5 4 Tool/Special . | . . . . . . . . . . . . . . . Unused Backups 41 | . 3 6 5 3 4 2 3 5 1 2 . 2 1 4 Power 8 | . 2 2 . 1 . . 1 . 1 1 . . . . Propulsion 3 | . 1 . 2 . . . . . . . . . . . Utility 13 | . . 1 1 2 . 1 2 . . . . 2 1 3 Weapon 16 | . . 3 2 . 4 1 . 5 . 1 . . . . Tool/Special 1 | . . . . . . . . . . . . . . 1 Average Slot Usage (%) 95 | . 100 99 97 99 99 99 99 97 92 89 88 87 89 70 Engine 5 | . 14 10 9 3 6 4 1 . . . . . . . Reactor 2 | . . . . . . . 4 2 3 5 5 5 8 6 Treads 22 | . 28 22 35 30 26 23 21 20 13 10 10 10 9 10 Device 17 | . 13 11 14 8 19 17 25 27 21 21 21 21 21 17 Storage 9 | . 14 11 9 7 6 10 10 10 10 10 10 10 9 6 Processor 6 | . . . . 6 6 10 10 10 10 10 11 15 14 10 Protection 5 | . . 11 1 12 6 5 5 2 9 10 8 4 5 2 Energy Gun 8 | . 14 15 12 7 12 . . 1 6 5 1 3 1 8 Ballistic Gun 12 | . 14 17 14 11 6 17 14 14 8 9 12 9 3 1 Ballistic Cannon 2 | . . . . . 4 5 5 2 4 5 5 6 8 1 Peak Build Rating 140 | 7 10 19 36 44 62 79 92 96 115 120 120 118 138 140 Average Rating 59 | 6 9 15 28 39 52 70 87 88 105 118 116 114 132 98 On Entrance 68 | . 7 10 19 34 44 57 79 89 88 113 120 118 118 135 Avg Prop Armor Cover (%) 5 | 8 . . 5 . . . . . . . . . . . Naked Turns 76 | . . . . . . . . . . . . . . 76 Heaviest Build 142 | 13 32 43 47 83 84 94 134 105 115 117 117 110 142 129 Greatest Support 160 | 40 40 40 88 89 94 102 102 108 160 160 160 160 160 160 Greatest Overweight (x) 3 | 2 . 1 . . . 1 1 1 1 . . . . 3 Average Overweight (x) . | . . . . . . . . . . . . . . . Largest Inventory Capacity 20 | 8 15 15 15 20 20 20 20 20 20 20 20 20 20 20 Average Capacity 17 | 7 13 15 15 15 20 20 20 20 20 20 20 20 20 18 Most Carried 20 | 3 15 15 15 16 20 20 20 20 20 20 20 20 20 20 Average Carried 16 | 1 10 14 14 14 17 19 19 19 19 19 19 19 19 15 Final Capacity 20 | 8 15 15 15 20 20 20 20 20 20 20 20 20 20 5 Final Carried 20 | 3 15 15 15 16 20 20 20 20 20 20 20 20 20 5 Class Distribution -------------------- 33% | Scavenger-Tank 26% | Scavenger-Gunner 13% | Gunner 13% | Mutant 12% | Tank Dominant Class ---------------- Mutant | -10/Materials Scavenger-Tank | -9/Materials Gunner | -8/Materials Tank | -7/Factory Gunner | -6/Factory Scavenger-Gunner | -5/Factory Scavenger-Gunner | -4/Factory Scavenger-Gunner | -4/Extension Scavenger-Tank | -4/Cetus Scavenger-Tank | -4/Archives Scavenger-Tank | -4/Hub_04(d) Scavenger-Tank | -4/Garrison Scavenger-Tank | -3/Research Scavenger-Gunner | -3/Quarantine Resources | -11 -10 -9 -8 -7 -6 -5 -4 -4 -4 -4 -4 -4 -3 -3 ----------- Run | Yrd Mat Mat Mat Fac Fac Fac Fac Ext Cet Arc Hub Gar Res Qua Matter Collected 9071 | 338 117 814 863 669 618 389 71 1798 299 366 301 544 1121 763 Remotely 1236 | . . . 92 . . 157 71 916 . . . . . . Salvage Created 13161 | 281 460 2105 1674 977 1471 369 64 1648 215 385 573 279 1243 1417 Parts 623 | 24 43 135 83 54 69 14 . 48 7 15 22 10 38 61 Haulers Intercepted 14 | . 2 5 4 . 1 1 . . . . . . 1 . Recyclers Shooed 11 | 1 1 3 1 1 2 1 . 1 . . . . . . Parts Field Recycled . | . . . . . . . . . . . . . . . Retrieved Matter . | . . . . . . . . . . . . . . . Parts Self-Destructed . | . . . . . . . . . . . . . . . Prevented . | . . . . . . . . . . . . . . . Parts Restored . | . . . . . . . . . . . . . . . Kills | -11 -10 -9 -8 -7 -6 -5 -4 -4 -4 -4 -4 -4 -3 -3 ------- Run | Yrd Mat Mat Mat Fac Fac Fac Fac Ext Cet Arc Hub Gar Res Qua Combat Hostiles Destroyed 185 | . 11 31 23 18 15 6 1 23 4 4 9 4 18 18 Melee 2 | . . . 1 . . . . . . . . . . 1 Guns 145 | . 11 31 22 17 12 3 . 17 2 4 6 3 3 14 Cannons 33 | . . . . 1 3 3 1 4 1 . 3 1 13 3 AOE 1 | . . . . . . . . 1 . . . . . . Classes Destroyed 18 | 3 4 4 3 1 . . . 1 . . . 1 . 1 Worker 24 | 2 3 9 2 3 4 . . 1 . . . . . . Builder 20 | . . 3 3 . 7 2 . 4 . . . . 1 . Tunneler 13 | 8 1 1 . . . 1 . 2 . . . . . . Hauler 14 | . 2 5 4 . 1 1 . . . . . . 1 . Recycler 17 | 1 1 6 2 2 2 . . 2 . . . . 1 . Mechanic 2 | . . . 1 . 1 . . . . . . . . . Operator 5 | . . 2 . . . . . 1 . 1 . . 1 . Watcher 16 | . 3 5 2 2 . . . 1 1 . 1 . . 1 Swarmer 21 | . 6 10 . 5 . . . . . . . . . . Grunt 78 | . 5 10 14 5 9 . . 12 . . 6 . 7 10 Brawler 2 | . . . 1 . . . . 1 . . . . . . Duelist 4 | . . 2 1 . 1 . . . . . . . . . Researcher 1 | . . . . . . . . . . . . . . 1 Sentry 43 | . . 9 6 3 3 1 1 6 . 4 1 3 3 3 Specialist 1 | . . . . . . . . . . . . 1 . . Hunter 10 | . . . 1 1 . 3 . 1 . . . . 2 2 Programmer 19 | . . . . 4 2 2 . . . . 2 . 6 3 Behemoth 2 | . . . . . . . . 2 . . . . . . Cetus Guard 4 | . . . . . . . . . 4 . . . . . Thug 1 | . . . . . . . . 1 . . . . . . Best Kill Streak 8 | 7 3 6 5 5 6 4 1 8 4 3 3 3 4 4 Combat Bots Only 5 | . 3 5 4 4 3 2 1 5 4 3 3 3 4 4 Max Kills in Single Turn 3 | 2 1 2 2 2 3 2 1 2 1 1 1 1 1 1 Gunslinging 1 | . . 1 1 1 . . . . . . . . . . Exploded 1 | . . . . . . . . 1 . . . . . . Melee 1 | . . . 1 . . . . . . . . . . 1 Uniques/NPCs Destroyed . | . . . . . . . . . . . . . . . Combat | -11 -10 -9 -8 -7 -6 -5 -4 -4 -4 -4 -4 -4 -3 -3 -------- Run | Yrd Mat Mat Mat Fac Fac Fac Fac Ext Cet Arc Hub Gar Res Qua Hostile Shots Fired 1467 | . 53 97 108 198 97 41 4 147 33 17 112 62 160 338 Missed 423 | . 16 28 23 56 34 13 . 43 13 6 44 27 42 78 Hits 1044 | . 37 69 85 142 63 28 4 104 20 11 68 35 118 260 Melee 9 | . . 2 7 . . . . . . . . . . . Projectile 1035 | . 37 67 78 142 63 28 4 104 20 11 68 35 118 260 Critical Strikes 40 | . 1 1 5 3 1 . . 5 1 . 5 . 5 13 Part Disruptions 6 | . . . 1 1 . . . . . . . . 1 3 Damage Taken 15943 | . 346 794 1435 1608 585 268 46 2117 449 150 893 396 1507 5349 Core 2066 | . 47 84 145 95 71 19 12 147 . 14 71 39 33 1289 Absorbed by Shields 3702 | . . . . . 196 282 49 689 97 153 446 322 1057 411 Reduced by Siege Mode 137 | . . . . . . . . . . . . . 87 50 Regen/Repaired (Parts) 140 | . . . . . 140 . . . . . . . . . Core Remaining (%) 85 | 100 81 79 73 86 91 98 . . . . . 75 . . Volleys Fired 693 | 32 48 103 84 59 58 19 3 77 22 17 27 17 61 66 Largest 4 | 2 2 3 3 3 4 4 4 4 4 4 4 4 4 4 Hottest 376 | 80 85 135 137 190 213 133 142 177 220 190 190 209 306 376 Shots Fired 2206 | 64 92 302 241 170 225 77 12 303 73 61 96 63 224 203 Gun 1802 | 64 92 302 240 154 168 58 8 259 50 44 71 46 78 168 Cannon 392 | . . . 1 16 57 19 3 33 23 17 25 17 146 35 Launcher 12 | . . . . . . . 1 11 . . . . . . Special . | . . . . . . . . . . . . . . . Kinetic 1338 | 28 48 163 113 94 109 77 11 260 49 44 90 54 133 65 Thermal 720 | 32 44 139 125 74 63 . . 32 2 . . 9 82 118 Explosive 12 | . . . . . . . 1 11 . . . . . . Electromagnetic 136 | 4 . . 3 2 53 . . . 22 17 6 . 9 20 Robot Hit Streak 29 | 9 8 22 15 29 15 27 10 29 19 9 12 7 19 14 Robot Miss Streak 12 | 5 6 12 4 5 4 5 1 5 2 3 3 2 8 5 Penetration Max 1 | . . . . 1 . . . 1 . . 1 1 1 1 Secondary Targets 18 | . . 6 4 3 . . . 4 . . . . . 1 Max Gunslinging Chain 1 | . . 1 1 1 . . . 1 . . . . . 1 Shots Hit Robots 1379 | 35 68 170 149 121 135 44 6 212 40 32 57 31 133 146 Core Hits 740 | 17 61 120 63 64 69 34 3 84 16 17 26 9 92 65 Critical Kills 15 | . . . 1 . . 2 . 5 . 2 2 2 1 . Critical Parts Destroyed 30 | . . . 1 1 . 1 . 7 1 . 8 2 4 5 Critical Strikes 89 | . . 4 9 1 5 6 1 25 4 2 12 7 6 7 Burn 23 | . . 4 7 . 4 . . 4 . . . 1 1 2 Destroy 49 | . . . 2 1 . 3 . 15 1 2 10 5 5 5 Blast 14 | . . . . . 1 3 1 6 . . 2 1 . . Corrupt 3 | . . . . . . . . . 3 . . . . . Melee Attacks 8 | . . . . . . . . 4 2 . . . . 2 Impact . | . . . . . . . . . . . . . . . Slashing 8 | . . . . . . . . 4 2 . . . . 2 Piercing . | . . . . . . . . . . . . . . . Sneak Attacks . | . . . . . . . . . . . . . . . Combat Hostiles . | . . . . . . . . . . . . . . . Follow-up Attacks . | . . . . . . . . . . . . . . . Damage Inflicted 32436 | 359 691 2498 2665 2518 3115 1256 172 6094 1174 919 1632 759 4591 3993 Guns 22415 | 359 684 2466 2615 2246 2023 590 77 4224 566 554 1030 525 1391 3065 Cannons 8126 | . . . . 253 875 293 61 873 608 354 580 195 3168 866 Explosions 1463 | . . . . . 144 373 . 946 . . . . . . Melee 62 | . . . . . . . . . . . . . . 62 Ramming 370 | . 7 32 50 19 73 . 34 51 . 11 22 39 32 . Kinetic 18203 | 153 245 977 1195 1019 1364 883 138 4673 889 680 1534 613 2598 1242 Thermal 11280 | 191 439 1489 1384 1469 1081 373 . 424 23 . . 107 1818 2482 Explosive 946 | . . . . . . . . 946 . . . . . . Electromagnetic 1575 | 15 . . 36 11 597 . . . 262 228 76 . 143 207 Impact . | . . . . . . . . . . . . . . . Slashing 62 | . . . . . . . . . . . . . . 62 Piercing . | . . . . . . . . . . . . . . . Highest Corruption 35 | . . . . 5 2 1 . . 10 17 17 17 24 35 Average Corruption 11 | . . . . 3 1 1 . . 9 11 17 17 14 26 Corruption Purged 5 | . . . . . . . . . . . . . . 5 Corruption Blocked . | . . . . . . . . . . . . . . . Effects 205 | . . . . 16 10 3 . . 12 15 22 28 51 48 Message Errors 39 | . . . . 4 3 . . . 1 4 1 8 11 7 Matter Fused 46 | . . . . 5 4 . . . 3 4 5 6 11 8 Heat Flow Errors 16 | . . . . . 1 1 . . 1 . 3 2 3 5 Energy Discharges 18 | . . . . 2 1 . . . 2 3 3 1 3 3 Parts Rejected 4 | . . . . . . . . . . . 1 . 2 1 Parts Fused 1 | . . . . . . . . . . . . . 1 . Data Loss (minor) 21 | . . . . 1 . 1 . . 2 1 2 6 5 3 Data Loss (major) 12 | . . . . 2 . . . . 1 1 1 . 3 4 Misfires 7 | . . . . . . 1 . . 2 1 1 . 1 1 Alerts 4 | . . . . . . . . . . . . 2 1 1 Misdirections 5 | . . . . . . . . . . . . . . 5 Weapon Failures 32 | . . . . 2 1 . . . . 1 5 3 10 10 Overload Shots 4 | . . . . . . . . . . . . . . 4 Overflow Damage 399 | . . . . 20 6 176 . 62 . 30 3 . 102 . Projectiles 206 | . . . . 20 6 . . 47 . 30 3 . 100 . Explosions 176 | . . . . . . 176 . . . . . . . . Melee 17 | . . . . . . . . 15 . . . . 2 . Knockbacks 70 | . . 1 . . 6 4 . 4 . 2 5 1 37 10 Impact 2 | . . 1 . . . . . . . . . . 1 . Kinetic 61 | . . . . . 5 4 . 4 . 2 5 1 30 10 Secondary 7 | . . . . . 1 . . . . . . . 6 . Self-Inflicted Damage 126 | . . . . . . . . 126 . . . . . . Shots 2 | . . . . . . . . 2 . . . . . . Rammed 46 | . 1 6 12 4 6 . 4 4 . 1 1 6 1 . Targets Rammed 55 | . 2 7 15 4 8 . 4 6 . 1 1 6 1 . Kicked . | . . . . . . . . . . . . . . . Crushed 9 | . 1 1 3 . 2 . . 2 . . . . . . Highest Temperature 369 | 60 313 369 339 217 122 99 . 21 252 . 101 138 349 229 Average Temperature 61 | 29 82 60 74 63 17 70 . 6 79 . 28 79 80 44 Received Heat Transfer 2867 | . 78 165 648 354 174 12 8 281 . 16 189 41 90 811 Effects 1 | . 1 . . . . . . . . . . . . . Energy Bleed 1 | . 1 . . . . . . . . . . . . . Siege Activations 12 | . . . . . . . . . . 2 . . 7 3 Total Turns 166 | . . . . . . . . . . 16 . . 103 47 Longest Duration 25 | . . . . . . . . . . 10 . . 25 24 Martial Activations . | . . . . . . . . . . . . . . . Shielding Activations . | . . . . . . . . . . . . . . . Robots Disrupted . | . . . . . . . . . . . . . . . Combat Hostiles . | . . . . . . . . . . . . . . . Robots Corrupted 4 | . . . . . 1 . . . 1 . . . 2 . Combat Hostiles 2 | . . . . . . . . . 1 . . . 1 . Parts Fried 8 | . . . 1 . 5 . . 1 . . . . 1 . Impact Corruptions 3 | . . . . . . . . 2 . . . . 1 . Robots Melted 2 | . . . . . . . . 1 . . . . 1 . Combat Hostiles 2 | . . . . . . . . 1 . . . . 1 . Parts Melted 40 | . 1 10 5 7 2 . . 5 . . . . 5 5 Heat Transferred 20374 | 425 545 3089 3330 2927 2698 250 . 1350 50 . . 350 1815 3545 Parts Sabotaged . | . . . . . . . . . . . . . . . Parts Stolen . | . . . . . . . . . . . . . . . Parts Stripped . | . . . . . . . . . . . . . . . Power Chain Reactions . | . . . . . . . . . . . . . . . Alert | -11 -10 -9 -8 -7 -6 -5 -4 -4 -4 -4 -4 -4 -3 -3 ------- Run | Yrd Mat Mat Mat Fac Fac Fac Fac Ext Cet Arc Hub Gar Res Qua Maximum Alert Level 3 | . . 2 2 1 1 1 . 3 2 . 1 1 1 1 Low Security (%) 70 | 100 100 60 13 78 87 99 100 92 14 100 92 11 68 68 Level 1 22 | . . 31 39 21 12 . . 4 78 . 7 88 31 31 Level 2 7 | . . 8 46 . . . . 3 6 . . . . . Level 3 . | . . . . . . . . . . . . . . . Level 4 . | . . . . . . . . . . . . . . . Level 5 . | . . . . . . . . . . . . . . . High Security . | . . . . . . . . . . . . . . . Max Security . | . . . . . . . . . . . . . . . Peak Influence 701 | 20 139 451 504 272 287 200 71 701 410 147 222 374 289 261 Initial 410 | . . 40 185 192 86 138 71 . 410 66 9 155 210 162 Average 152 | 2 36 184 344 180 84 100 13 72 279 82 98 275 169 168 Influence Increases 7752 | 55 435 1041 861 544 641 334 50 1618 119 142 386 259 609 658 Destroy 0b10 Robot/C 4040 | . 220 620 460 360 300 120 20 720 80 80 180 140 360 380 Destroy 0b10 Robot/NC 560 | 55 50 155 70 35 75 20 . 60 5 5 5 . 20 5 Destroy Leader 848 | . 40 170 122 104 82 42 10 82 . . 32 . 92 72 Allied During Kill 500 | . . . . . . . . 471 6 . . 23 . . Trap Triggered on 0b10 50 | . 20 . 30 . . . . . . . . . . . Successful Hack 242 | . 30 35 9 26 . . . 44 18 . 42 7 7 24 Disable Machine 615 | . . 45 45 15 75 120 . 60 . 45 45 30 45 90 Anti-Garrison Action 50 | . . . . . . . . . . . . 50 . . Destroy Structure 337 | . . 1 5 4 4 32 20 106 10 12 52 9 70 12 Lose Combat Pursuer 510 | . 75 15 120 . 105 . . 75 . . 30 . 15 75 Influence Decreases 7586 | 55 337 698 878 792 534 470 197 885 687 279 192 107 694 781 Entered New Map 1656 | . . 58 256 232 90 145 76 . 323 99 19 67 164 127 Time Decay 5006 | 55 337 630 592 550 434 325 121 531 254 180 153 . 510 334 Lost Part 560 | . . 10 30 10 10 . . 110 10 . 20 20 20 320 Lost Ally 364 | . . . . . . . . 244 100 . . 20 . . Squads Dispatched 42 | . 1 2 4 6 3 2 2 3 . . 6 . 4 9 Investigation 4 | . 1 . . . . . 1 1 . . 1 . . . Extermination 12 | . . . . 4 1 1 1 . . . 1 . 3 1 Reinforcement 19 | . . 2 3 2 2 . . 2 . . 2 . 1 5 Assault . | . . . . . . . . . . . . . . . Garrison 7 | . . . 1 . . 1 . . . . 2 . . 3 Intercept . | . . . . . . . . . . . . . . . Searches Triggered . | . . . . . . . . . . . . . . . Construction Impeded 2 | . . . . . . . . 1 . . 1 . . . Haulers Reinforced 1 | . . . . . . . . . . . . . . 1 Active Scanning Responses . | . . . . . . . . . . . . . . . Cargo Convoy Interrupts . | . . . . . . . . . . . . . . . Stealth | -11 -10 -9 -8 -7 -6 -5 -4 -4 -4 -4 -4 -4 -3 -3 --------- Run | Yrd Mat Mat Mat Fac Fac Fac Fac Ext Cet Arc Hub Gar Res Qua Distress Signals 16 | . 1 3 4 . . . . 4 1 . 2 . . 1 Communications Jammed 12 | . . . . . . . . 10 . . . . . 2 Distress Signals 12 | . . . . . . . . 10 . . . . . 2 Times Spotted 301 | . 22 38 43 23 22 6 2 46 5 11 19 6 23 35 Peak Tracking Total 9 | . 4 5 6 4 4 2 1 9 5 1 6 3 4 5 Tactical Retreats 25 | . 2 1 6 . 6 . . 4 . . 2 . 1 3 Traps | -11 -10 -9 -8 -7 -6 -5 -4 -4 -4 -4 -4 -4 -3 -3 ------- Run | Yrd Mat Mat Mat Fac Fac Fac Fac Ext Cet Arc Hub Gar Res Qua Traps Triggered 12 | . 1 1 1 2 . 1 . 1 . . . 2 2 1 Indirectly . | . . . . . . . . . . . . . . . Trap Hack Attempts . | . . . . . . . . . . . . . . . Triggered . | . . . . . . . . . . . . . . . Disarmed 4 | . . . . . . . . . . . 4 . . . Reprogrammed 8 | . 4 . 4 . . . . . . . . . . . Reused 5 | . 2 . 3 . . . . . . . . . . . Traps Extracted . | . . . . . . . . . . . . . . . Installed . | . . . . . . . . . . . . . . . Triggered 5 | . 2 . 3 . . . . . . . . . . . Machines | -11 -10 -9 -8 -7 -6 -5 -4 -4 -4 -4 -4 -4 -3 -3 ---------- Run | Yrd Mat Mat Mat Fac Fac Fac Fac Ext Cet Arc Hub Gar Res Qua Machines Disabled 47 | . . 3 3 1 5 8 . 8 1 3 3 3 3 6 Max in Single Turn 8 | . . 1 1 1 2 8 . 2 1 1 1 1 1 1 Garrison Access 2 | . . . 1 . . . . . . . . . . 1 Garrison Relay 1 | . . . . . . . . . . . . 1 . . Machines Repaired . | . . . . . . . . . . . . . . . Machines Dismantled . | . . . . . . . . . . . . . . . Machines Sabotaged . | . . . . . . . . . . . . . . . Overloaded Fab Kills . | . . . . . . . . . . . . . . . Hacking | -11 -10 -9 -8 -7 -6 -5 -4 -4 -4 -4 -4 -4 -3 -3 --------- Run | Yrd Mat Mat Mat Fac Fac Fac Fac Ext Cet Arc Hub Gar Res Qua Machines Accessed 53 | . 7 9 7 3 2 1 3 9 2 1 3 1 2 3 Terminals 41 | . 6 8 6 1 . . 3 9 2 . 2 1 2 1 Fabricators . | . . . . . . . . . . . . . . . Repair Stations 1 | . . . . . 1 . . . . . . . . . Recycling Units 1 | . 1 . . . . . . . . . . . . . Scanalyzers 3 | . . 1 . 1 . . . . . . . . . 1 Garrison Access 6 | . . . 1 1 1 1 . . . . 1 . . 1 Total Hacks 116 | . 25 17 15 8 4 2 5 13 5 6 6 1 3 6 Successful 70 | . 16 14 8 3 2 . 2 8 4 6 3 1 1 2 Failed 46 | . 9 3 7 5 2 2 3 5 1 . 3 . 2 4 Catastrophic 11 | . . 1 2 . 1 . 2 2 . . 1 . 1 1 Database Lockouts . | . . . . . . . . . . . . . . . Manual 59 | . 17 14 11 3 . . 4 4 . . 6 . . . Terminals 88 | . 22 15 14 3 . . 5 13 5 . 5 1 3 2 Fabricators . | . . . . . . . . . . . . . . . Repair Stations 3 | . . . . . 3 . . . . . . . . . Recycling Units 3 | . 3 . . . . . . . . . . . . . Scanalyzers 7 | . . 2 . 2 . . . . . . . . . 3 Garrison Access 9 | . . . 1 3 1 2 . . . . 1 . . 1 Terminal Hacks 33 | . 6 3 2 . . . 1 6 4 6 2 1 1 1 Record 12 | . . . . . . . . . 4 6 1 . . 1 Prototype ID Bank 1 | . . 1 . . . . . . . . . . . . Open Door 9 | . . . . . . . 1 6 . . . 1 1 . Emergency Access Points 1 | . 1 . . . . . . . . . . . . . Terminal Index 2 | . 1 1 . . . . . . . . . . . . Alert Level 1 | . 1 . . . . . . . . . . . . . Locate Traps 2 | . 1 . 1 . . . . . . . . . . . Disarm Traps 1 | . . . . . . . . . . . 1 . . . Reprogram Traps 3 | . 2 . 1 . . . . . . . . . . . Registered Components 1 | . . 1 . . . . . . . . . . . . Fabricator Hacks . | . . . . . . . . . . . . . . . Repair Station Hacks 2 | . . . . . 2 . . . . . . . . . Scan Component 1 | . . . . . 1 . . . . . . . . . Repair 1 | . . . . . 1 . . . . . . . . . Recycling Unit Hacks 1 | . 1 . . . . . . . . . . . . . Retrieve Components 1 | . 1 . . . . . . . . . . . . . Scanalyzer 4 | . . 2 . 2 . . . . . . . . . . Retrieve Study 4 | . . 2 . 2 . . . . . . . . . . Garrison Access Hacks 3 | . . . 1 . . . . . . . 1 . . 1 Unlock Access 1 | . . . . . . . . . . . 1 . . . Seal Access 2 | . . . 1 . . . . . . . . . . 1 Unauthorized Hacks 27 | . 9 9 5 1 . . 1 2 . . . . . . Terminals 27 | . 9 9 5 1 . . 1 2 . . . . . . Botnet 8 | . 3 3 . . . . . 2 . . . . . . Operators 2 | . 1 1 . . . . . . . . . . . . Skim 17 | . 5 5 5 1 . . 1 . . . . . . . Fabricators . | . . . . . . . . . . . . . . . Repair Stations . | . . . . . . . . . . . . . . . Recycling Units . | . . . . . . . . . . . . . . . Scanalyzers . | . . . . . . . . . . . . . . . Garrison Access . | . . . . . . . . . . . . . . . Data Cores Recovered 1 | . . . . . . . . . . . . . 1 . Used . | . . . . . . . . . . . . . . . Hacking Detections 34 | . 6 3 5 3 1 1 3 3 1 . 4 1 1 2 Full Trace Events 3 | . . . . . . . 1 1 . . 1 . . . Feedback Events . | . . . . . . . . . . . . . . . Feedback Blocked . | . . . . . . . . . . . . . . . Robot Schematics Acquired . | . . . . . . . . . . . . . . . Robots Built . | . . . . . . . . . . . . . . . Authchips . | . . . . . . . . . . . . . . . Time . | . . . . . . . . . . . . . . . Total Robot Build Rating . | . . . . . . . . . . . . . . . Part Schematics Acquired 1 | . . . . . . . . . . . . . . 1 Parts Built . | . . . . . . . . . . . . . . . Authchips . | . . . . . . . . . . . . . . . Time . | . . . . . . . . . . . . . . . Total Part Build Rating . | . . . . . . . . . . . . . . . Part Studies Acquired 4 | . . 2 . 2 . . . . . . . . . . Parts Repaired 1 | . . . . . 1 . . . . . . . . . Time 38 | . . . . . 38 . . . . . . . . . Parts Recycled . | . . . . . . . . . . . . . . . Recycled Matter . | . . . . . . . . . . . . . . . Retrieved Matter . | . . . . . . . . . . . . . . . Retrieved Components . | . . . . . . . . . . . . . . . Parts Scanalyzed . | . . . . . . . . . . . . . . . Part Schematics Acquired . | . . . . . . . . . . . . . . . Parts Damaged . | . . . . . . . . . . . . . . . Bothacking | -11 -10 -9 -8 -7 -6 -5 -4 -4 -4 -4 -4 -4 -3 -3 ------------ Run | Yrd Mat Mat Mat Fac Fac Fac Fac Ext Cet Arc Hub Gar Res Qua Used RIF Installer 1 | . . . . . . . . . . . . 1 . . Robots Hacked . | . . . . . . . . . . . . . . . Non-combat . | . . . . . . . . . . . . . . . Combat . | . . . . . . . . . . . . . . . Robot Hacks Applied . | . . . . . . . . . . . . . . . Relay Couplers Released 3 | . . . . . . . . . . . . 3 . . Machine Destruction 3 | . . . . . . . . . . . . 3 . . Fabnet Peak Effective % . | . . . . . . . . . . . . . . . Robots Rewired 14 | . . . . . . . . 10 . . . 4 . . Allies Hacked . | . . . . . . . . . . . . . . . Hacks Repelled . | . . . . . . . . . . . . . . . Allies | -11 -10 -9 -8 -7 -6 -5 -4 -4 -4 -4 -4 -4 -3 -3 -------- Run | Yrd Mat Mat Mat Fac Fac Fac Fac Ext Cet Arc Hub Gar Res Qua Total Allies 22 | . . . . . . . . 18 . . . 4 . . Largest Group 10 | . . . . . . . . 10 5 . . 4 . . Highest-Rated Group 411 | . . . . . . . . 411 204 . . 156 . . Highest-Rated Ally 51 | . . . . . . . . 51 51 . . 51 . . Total Orders . | . . . . . . . . . . . . . . . Ally Attacks 118 | . . . . . . . . 96 12 . . 10 . . Total Damage 2923 | . . . . . . . . 2351 318 . . 254 . . Kills 17 | . . . . . . . . 14 . . . 3 . . Allies Corrupted . | . . . . . . . . . . . . . . . Allies Melted 1 | . . . . . . . . . . . . 1 . . Intel | -11 -10 -9 -8 -7 -6 -5 -4 -4 -4 -4 -4 -4 -3 -3 ------- Run | Yrd Mat Mat Mat Fac Fac Fac Fac Ext Cet Arc Hub Gar Res Qua Active Infowar (turns) 10278 | 163 1614 141 1387 148 813 . 505 1952 541 371 377 594 1257 415 Optics 53 | . . . . . . . . . . . . . . 53 Sensors 184 | . . . . . . . . 184 . . . . . . Terrain 4084 | . . . . . . . . 944 541 371 377 594 1257 . Seismic 6546 | 163 1614 141 1387 148 813 . 505 1775 . . . . . . Jamming 1821 | . . . . . . . 293 1166 . . . . . 362 Robot Analysis Total . | . . . . . . . . . . . . . . . Derelict Logs Recovered . | . . . . . . . . . . . . . . . Drone Launches . | . . . . . . . . . . . . . . . Drone Recoveries . | . . . . . . . . . . . . . . . Exploration | -11 -10 -9 -8 -7 -6 -5 -4 -4 -4 -4 -4 -4 -3 -3 ------------- Run | Yrd Mat Mat Mat Fac Fac Fac Fac Ext Cet Arc Hub Gar Res Qua Turns Passed 16586 | 291 1730 2507 1865 1581 1216 793 545 2030 541 371 377 594 1395 750 Spaces Moved 7825 | 116 864 1103 777 873 618 438 326 865 224 176 167 289 658 331 Core 151 | 14 . . . . . . . . . . . . . 137 Treads 7666 | 94 864 1103 777 873 618 438 326 865 224 176 167 289 658 194 Legs 8 | 8 . . . . . . . . . . . . . . Wheels . | . . . . . . . . . . . . . . . Hover . | . . . . . . . . . . . . . . . Flight . | . . . . . . . . . . . . . . . Fastest Speed 50 | 50 160 160 145 145 148 152 152 152 160 160 160 160 160 50 Average Speed 161 | 154 160 186 153 148 148 159 152 178 170 160 160 160 160 125 Slowest Speed 240 | 160 160 200 160 152 152 202 212 240 240 160 160 160 160 240 Overloaded Moves . | . . . . . . . . . . . . . . . Propulsion Burnouts . | . . . . . . . . . . . . . . . Robots Hopped . | . . . . . . . . . . . . . . . Potential Cave-ins . | . . . . . . . . . . . . . . . Cave-ins Triggered . | . . . . . . . . . . . . . . . Exploration Rate (%) 43 | 6 96 77 64 22 20 7 8 73 64 98 20 39 16 38 Regions Visited 14 Branch Regions 5 Pre-discovered Areas 4 | . 1 1 2 . . . . . . . . . . . Known Exits Taken 5 | . . 1 1 1 . . 1 . . . 1 . . . Unknown Exits Taken 8 | 1 1 . . . 1 1 . 1 1 1 . . 1 . Scrap Searched . | . . . . . . . . . . . . . . . Spaces Dug 19 | . . . 1 . . . 9 . . . 2 . 7 . Terrain Destroyed 183 | . . . 3 5 2 18 9 61 1 10 26 5 36 7 Melee . | . . . . . . . . . . . . . . . Projectile 133 | . . . 3 5 2 10 1 27 1 10 26 5 36 7 AOE 50 | . . . . . . 8 8 34 . . . . . . Terrain Rammed . | . . . . . . . . . . . . . . . Walls Destroyed . | . . . . . . . . . . . . . . . Machines Disabled . | . . . . . . . . . . . . . . . Actions | -11 -10 -9 -8 -7 -6 -5 -4 -4 -4 -4 -4 -4 -3 -3 --------- Run | Yrd Mat Mat Mat Fac Fac Fac Fac Ext Cet Arc Hub Gar Res Qua Total 10245 | 164 1129 1347 1287 1015 778 491 369 1155 330 232 211 379 848 510 Wait 938 | 4 183 55 312 27 52 12 9 42 62 23 9 11 100 37 Move 7810 | 115 863 1102 776 872 617 437 325 864 223 175 166 287 657 331 Hop . | . . . . . . . . . . . . . . . Pick Up 113 | 2 16 10 18 6 13 4 9 14 1 4 1 2 7 6 Fast Attach 50 | 7 . 3 1 3 1 . 3 9 2 . 2 1 . 18 Attach 44 | . . 1 5 2 2 2 2 7 1 . 1 1 5 15 Detach 3 | . . 1 . . . . . . . . . . . 2 Swap 199 | 4 8 32 41 27 15 9 3 15 10 5 3 3 12 12 Drop 169 | . 9 33 35 15 12 8 11 11 7 7 1 3 5 12 Fire 693 | 32 48 103 84 59 58 19 3 77 22 17 27 17 61 66 Melee 8 | . . . . . . . . 4 2 . . . . 2 Ram 1 | . . . . . . . . . . . . . . 1 Kick . | . . . . . . . . . . . . . . . Crush 55 | . 2 7 15 4 8 . 4 6 . 1 1 6 1 . Escape Stasis 8 | . . . . . . . . . . . . . . 8 Rewire 154 | . . . . . . . . 106 . . . 48 . . Trap . | . . . . . . . . . . . . . . . Miscellaneous . | . . . . . . . . . . . . . . . Route ------- -11/Scrapyard -10/Materials (discovered 6 exits: *Mat x3 / [*Min x2] / [*Sub]) -9/Materials (discovered 4 exits: *Mat x3 / *Min) -8/Materials (discovered 3 exits: *Fac x3) -7/Factory (discovered 6 exits: *Fac x4 / Sto x2) -6/Factory (discovered 3 exits: *Fac / *Low x2) -5/Factory -4/Factory (discovered 2 exits: *Ext x2) -4/Extension (discovered 3 exits: *Res x2 / *Cet) -4/Cetus -4/Archives (discovered 3 exits: *Res / *Hub x2) -4/Hub_04(d) -4/Garrison -3/Research -3/Quarantine History --------- Turn | Location | Event 2 | -11/Scrapyard | Met Revision 17 19 | -11/Scrapyard | Discovered new exit (range 16) 292 | -11/Scrapyard | Entered Materials 320 | -10/Materials | Build established: Mutant 585 | -10/Materials | Discovered new exit (range 16) 1090 | -10/Materials | Discovered new exit (range 13) 1287 | -10/Materials | Discovered new exit (range 10) 1294 | -10/Materials | Discovered new exit (range 11) 1627 | -10/Materials | Discovered new exit (range 11) 1714 | -10/Materials | Discovered new exit (range 14) 1931 | -10/Materials | Learned location of 3 exits from Materials 2000 | -10/Materials | Loaded intel: 3 trap records 2022 | -10/Materials | Entered another Materials area 2022 | -9/Materials | Evolved 2 slots: Utility x1, Weapon x1 2023 | -9/Materials | Identified exit to Mines 2024 | -9/Materials | Identified exit to Materials 2412 | -9/Materials | Build established: Tank 2971 | -9/Materials | Learned location of 2 exits from Materials 3035 | -9/Materials | Learned location of 1 exit from Storage 3130 | -9/Materials | Learned 4 Recycling zone layouts 3161 | -9/Materials | Learned Storage emergency access door positions 3184 | -9/Materials | Loaded intel: 16 trap records 3196 | -9/Materials | Learned location of 1 exit from Storage 3220 | -9/Materials | Learned Storage stockpile data 3421 | -9/Materials | Build established: Scavenger-Tank 4529 | -9/Materials | Entered another Materials area 4529 | -8/Materials | Evolved 2 slots: Propulsion x2 4530 | -8/Materials | Identified exit to Factory 4582 | -8/Materials | Garrison activated, responded to threat 4822 | -8/Materials | Build established: Scavenger-Gunner 5112 | -8/Materials | Lost 3 parts (1n2u) 6062 | -8/Materials | Build established: Gunner 6097 | -8/Materials | Learned 2 Storage zone layouts 6153 | -8/Materials | Learned 12 Factory zone layouts 6201 | -8/Materials | Learned location of 1 exit from Extension 6237 | -8/Materials | Learned Storage emergency access door positions 6275 | -8/Materials | Learned location of Storage (-7) 6298 | -8/Materials | Learned location of 3 exits from Factory 6394 | -8/Materials | Entered Factory 6394 | -7/Factory | Evolved 2 slots: Utility x2 6395 | -7/Factory | Identified exit to Factory 6396 | -7/Factory | Identified exit to Storage 6892 | -7/Factory | Build established: Scavenger-Tank 7485 | -7/Factory | Build established: Tank 7975 | -7/Factory | Entered another Factory area 7975 | -6/Factory | Evolved 2 slots: Utility x1, Weapon x1 8073 | -6/Factory | Build established: Gunner 8569 | -6/Factory | Discovered new exit (range 5) 8667 | -6/Factory | Identified exit to Lower Caves 8738 | -6/Factory | Repaired Adv. Treads+ 8974 | -6/Factory | Discovered exit to Lower Caves (range 16) 9104 | -6/Factory | Discovered new exit (range 8) 9129 | -6/Factory | Build established: Tank 9191 | -6/Factory | Entered another Factory area 9191 | -5/Factory | Evolved 2 slots: Utility x2 9198 | -5/Factory | Discovered new exit (range 9) 9549 | -5/Factory | Build established: Scavenger-Gunner 9860 | -5/Factory | Garrison activated, responded to threat 9984 | -5/Factory | Entered another Factory area 9984 | -4/Factory | Evolved 2 slots: Utility x2 9985 | -4/Factory | Identified exit to Extension 10226 | -4/Factory | Found Unknown Protection 10230 | -4/Factory | Found Unknown Protection 10230 | -4/Factory | Identified Hvy. Reactive Plating (x2) 10523 | -4/Factory | Discovered exit to Extension (range 6) 10529 | -4/Factory | Entered Extension 10530 | -4/Extension | Identified exit to Research 10774 | -4/Extension | Rescued a captive Derelict 10833 | -4/Extension | Rescued a captive Derelict 11372 | -4/Extension | Rescued a captive Derelict 11453 | -4/Extension | Spotted B-86 Titan 11495 | -4/Extension | Lost 5 allies 11495 | -4/Extension | Destroyed B-86 Titan 11501 | -4/Extension | Spotted B-86 Titan 11537 | -4/Extension | Destroyed B-86 Titan 11564 | -4/Extension | Lost 8 parts (1p2n4u1w) 11694 | -4/Extension | Rescued a captive Derelict 11695 | -4/Extension | Rescued a captive Derelict 11854 | -4/Extension | Disrupted transfer network 11997 | -4/Extension | Rescued a captive Derelict 11997 | -4/Extension | Rescued a captive Derelict 12088 | -4/Extension | Rescued a captive Derelict 12479 | -4/Extension | Disrupted transfer network 12536 | -4/Extension | Discovered exit to Research (range 10) 12538 | -4/Extension | Discovered new exit (range 6) 12559 | -4/Extension | Entered Cetus 12559 | -4/Cetus | Accompanied by 5 allies 12589 | -4/Cetus | Spotted Cetus Guard 12589 | -4/Cetus | Spotted Cetus Guard 12591 | -4/Cetus | Spotted Cetus Guard 12592 | -4/Cetus | Spotted Cetus Guard 12606 | -4/Cetus | Destroyed Cetus Guard 12626 | -4/Cetus | Destroyed Cetus Guard 12630 | -4/Cetus | Destroyed Cetus Guard 12639 | -4/Cetus | Destroyed Cetus Guard 12660 | -4/Cetus | Lost 5 allies 12735 | -4/Cetus | System corruption reached 10% 12836 | -4/Cetus | Build established: Scavenger-Tank 12864 | -4/Cetus | Discovered new exit (range 15) 13100 | -4/Cetus | Entered Archives 13224 | -4/Archives | Unable to access archive contents 13227 | -4/Archives | Discovered new exit (range 15) 13272 | -4/Archives | Unable to access archive contents 13275 | -4/Archives | Discovered new exit (range 16) 13297 | -4/Archives | Unable to access archive contents 13363 | -4/Archives | Discovered exit to Research (range 15) 13426 | -4/Archives | Unable to access archive contents 13471 | -4/Archives | Entered Hub_04(d) 13733 | -4/Hub_04(d) | Garrison activated, responded to threat 13846 | -4/Hub_04(d) | Identified exit to Garrison 13848 | -4/Hub_04(d) | Entered Garrison 14018 | -4/Garrison | Triggered checkpoint 14208 | -4/Garrison | Triggered checkpoint 14284 | -4/Garrison | Triggered checkpoint 14358 | -4/Garrison | Garrison Relay disabled 14398 | -4/Garrison | Discovered exit to Research (range 10) 14427 | -4/Garrison | Installed Relay Interface Framework 14442 | -4/Garrison | Entered Research 14442 | -3/Research | Evolved 2 slots: Power x1, Utility x1 14936 | -3/Research | System corruption reached 10% 15582 | -3/Research | Discovered new exit (range 16) 15837 | -3/Research | Entered Quarantine 15994 | -3/Quarantine | Found Alien Artifact 15994 | -3/Quarantine | Identified Terrabomb 15994 | -3/Quarantine | Used Terrabomb 16083 | -3/Quarantine | Build established: Scavenger-Gunner 16207 | -3/Quarantine | System corruption reached 30% 16283 | -3/Quarantine | Lost 21 parts (3p3n7u8w) 16452 | -3/Quarantine | Scanned by Researcher 16494 | -3/Quarantine | Released all parts (10) 16498 | -3/Quarantine | Core integrity fell below 50% 16522 | -3/Quarantine | Lost 9 parts (1p3n1u4w) 16550 | -3/Quarantine | Found Alien Artifact 16550 | -3/Quarantine | Identified Subatomic Replicator 16572 | -3/Quarantine | Core integrity fell below 20% 16582 | -3/Quarantine | Spotted Fortress 16587 | -3/Quarantine | Destroyed by P-80 Master with Gamma Rifle Last Messages --------------- 16550_ Identified Subatomic Replicator. 16550_ Unable to initiate replication process, detached Subatomic Replicator. 16555_ :KY#/4B|QBCTY3 SC/LAZNAMLRKG%JR96SOQH 16559_ Dropped Adv. Coolant Injector. 16564_ Triggered Stasis Trap. 16564_ A bubble of rippling energy engulfs the area. 16564_ Field strength at 94. 16564_ Field strength at 88. 16565_ Field strength at 70. 16566_ Field strength at 64. 16567_ Field strength at 58. 16568_ Field strength at 39. 16569_ Field strength at 20. 16570_ Field strength at 14. 16571_ Field strength at 1. 16571_ Stasis field depleted. 16574_ F50/FHW # I/GNL/BT&R M 16584_ Knocked back. Map ----- +----------------------------------------------------+ | | | | | | | | | | | | | | | | | | | ?????????????????????????????????????????????????? | | ?????????????????????????????????????????????????? | | ?????????????????????????????????????????????????? | | ?????????????????????????????????????????????????? | | ?????????????????????????????????????????????????? | | ?????????????????????????????????????????????????? | | ?????????????????????????????????????????????????? | | ?????????????????????????????????????????????????? | | ?????????????????????????????????????????????????? | | ?????????????????????????????????????????????????? | | ?????????????????????????????????????????????????? | | ?????????????????????????????????????????????????? | | ?????????????????????????????????????????????????? | | ???#####################################?????????? | | #### ????????? | | / c ????????? | | / @ ????????? | | / % ????????? | | / ????????? | | #### ?????????? | | ???#######################; ######?????????? | | ??????????????????????????#" FFF""#??????????????? | | ???????????????????????????""FFF""#??????????????? | | ???????????????????????????""FFF""#??????????????? | | ???????????????????????????"" ""???????????????? | | ?????????????????????????????"""""???????????????? | | ??????????????????????????????####???????????????? | | ?????????????????????????????????????????????????? | | ?????????????????????????????????????????????????? | | ?????????????????????????????????????????????????? | | ?????????????????????????????????????????????????? | | ?????????????????????????????????????????????????? | | ?????????????????????????????????????????????????? | | ?????????????????????????????????????????????????? | | ?????????????????????????????????????????????????? | | ?????????????????????????????????????????????????? | | ?????????????????????????????????????????????????? | | ?????????????????????????????????????????????????? | | ?????????????????????????????????????????????????? | | ?????????????????????????????????????????????????? | | ?????????????????????????????????????????????????? | +----------------------------------------------------+ Best States ------------- Heat Dissipation 103 Coolant Potential 100 Energy Generation 41 Energy Capacity 925 Matter Stores 300 Matter Capacity 300 Sight Range 20 Robot Scan Range 18 Terrain Scan Range 16 Terrain Scan Density 10 Jamming Range 14 Armor Coverage 1200 Evasion (%) 50 Targeting Accuracy 6 Target Analysis 9 Recoil Reduction 4 Matter Filtering 30 Item Schematics ----------------- Imp. Matter Neutralizer | -3/Quarantine | Archive Robot Schematics ------------------ None Fabricated ------------ Nothing Repaired ---------- Adv. Treads | 17% | -6/Factory Studied --------- Spread Laser | -9/Materials | Hacked Lgt. Treads | -9/Materials | Hacked Nuclear Core | -7/Factory | Hacked Adv. Treads | -7/Factory | Hacked Alien Tech Used ----------------- Terrabomb Subatomic Replicator Achievements -------------- Late Bloomer Challenges ------------ None Game ------ Seed CloakingCannonInterface Manual? 0 Play Time 01:42:09 Cumulative 242.2 hours Start 2025.11.05 @ 01:11:14 End 2025.11.05 @ 02:49:59 Sessions 1 Manual Loads 0 Difficulty Rogue Special Mode None Game No. 374 Rogue 372 Adventurer 0 Explorer 2 Win Type - Total 4 Types 3/0/0/1/0/0/0/0/0/0 Lore% 54 Gallery% 62 Achievement% 41 Wizard Run 0 Options --------- Layout 2 ASCII 0 Keyboard 1 Movement Arrows Keybinds 0 Fullscreen 1 Font 28/SmallcapsGlow Map View 50x49 Zoom Use 1% Tactical HUD 1 Map Filters NONE Filters NONE Steam 1 RUN: 90ae20ba-9786-4c02-8527-5c3591ed308e